bitfinex/quotes_BTCUSD_20251104
["timestamp","ask_amount","ask_price","bid_price","bid_amount"]
[1762288249263,0.86200743,100610.0,100590.0,0.063674]
[1762288249463,0.34,100620.0,100590.0,0.063674]
[1762288249677,0.86200743,100610.0,100590.0,0.063674]
[1762288249889,0.86200743,100610.0,100590.0,0.087674]
[1762288250104,0.86200743,100610.0,100600.0,0.19880715]
[1762288250308,0.86200743,100620.0,100610.0,0.024]
[1762288250518,0.86200743,100630.0,100610.0,0.02987]
[1762288250724,0.86200743,100630.0,100610.0,0.03286756]
[1762288250941,0.86200743,100630.0,100610.0,0.02987]
[1762288251163,0.86200743,100630.0,100610.0,0.024]
[1762288251369,0.09383,100630.0,100600.0,0.2327473]
[1762288251579,0.14342,100640.0,100600.0,0.20874605]
[1762288251793,0.04959,100640.0,100620.0,0.19876513]
[1762288252207,0.95583743,100660.0,100630.0,0.01018966]
[1762288252415,0.09383,100660.0,100630.0,0.23293636]
[1762288252667,0.09383,100660.0,100630.0,0.00025227]
[1762288252874,0.63610041,100650.0,100630.0,0.00046933]
[1762288253079,0.68569041,100640.0,100620.0,0.024]
[1762288253250,0.68569041,100640.0,100610.0,0.54872485]
[1762288253479,0.77952041,100640.0,100620.0,0.00014511]
[1762288253709,0.04959,100640.0,100620.0,0.19890996]
[1762288253931,0.77952041,100640.0,100620.0,0.00114511]
[1762288254136,0.04959,100640.0,100620.0,0.19991051]
[1762288254336,0.63610041,100650.0,100630.0,0.20868527]
[1762288254510,0.72993041,100650.0,100620.0,0.20884889]
[1762288254657,0.14342,100640.0,100620.0,0.00014511]
[1762288255088,0.77952041,100640.0,100620.0,0.00238348]
[1762288255296,0.63610041,100630.0,100620.0,0.00214511]
[1762288255500,0.77952041,100640.0,100620.0,0.00014511]
[1762288255674,0.77952041,100640.0,100620.0,0.00068228]
[1762288255876,0.68569041,100640.0,100620.0,0.00068228]
[1762288256207,0.77952041,100640.0,100620.0,0.00014511]
[1762288256590,0.72993041,100630.0,100620.0,0.00014511]
[1762288256812,0.63610041,100630.0,100620.0,0.00314511]
[1762288257150,1.11952041,100640.0,100620.0,0.02414511]
[1762288257288,0.34,100630.0,100620.0,0.02513894]
[1762288257495,0.34,100630.0,100620.0,0.02514511]
[1762288257695,0.68569041,100640.0,100620.0,0.00141763]
[1762288257891,0.13748669,100670.0,100630.0,0.00993739]
[1762288257892,0.09383,100660.0,100630.0,0.00993739]
[1762288258074,0.63610041,100650.0,100630.0,0.01220352]
[1762288258275,0.63610041,100650.0,100630.0,0.2109514]
[1762288258499,0.72993041,100660.0,100640.0,0.024]
[1762288258734,1.06993041,100660.0,100640.0,0.0122023]
[1762288258943,0.79251041,100650.0,100620.0,0.21084954]
[1762288259129,0.04959,100630.0,100620.0,0.00214511]
[1762288259327,0.74827041,100630.0,100620.0,0.02614511]
[1762288259532,0.04959,100630.0,100620.0,0.02614511]
[1762288259749,0.04959,100630.0,100620.0,0.00214511]
[1762288259972,0.04959,100640.0,100620.0,0.22290957]
[1762288260177,0.34,100640.0,100630.0,0.02525123]
[1762288260401,0.63610041,100650.0,100640.0,0.024]
[1762288260612,0.04793,100670.0,100640.0,0.23853311]
[1762288260805,0.04793,100670.0,100640.0,0.46626311]
[1762288261030,0.04793,100670.0,100660.0,0.024]
[1762288261207,0.04793,100690.0,100660.0,0.22855841]
[1762288261208,0.77786041,100690.0,100660.0,0.22855841]
[1762288261418,0.04793,100690.0,100670.0,0.19866795]
[1762288261642,0.04959,100700.0,100680.0,0.19864842]
[1762288261844,0.77972041,100710.0,100690.0,0.00025237]
[1762288262020,1.11952041,100700.0,100690.0,0.00025237]
[1762288262229,0.77952041,100700.0,100680.0,0.04836]
[1762288262410,0.77937013,100700.0,100680.0,0.04836]
[1762288262616,0.72993041,100690.0,100680.0,0.04836]
[1762288262820,0.63610041,100690.0,100680.0,0.04836]
[1762288263024,0.93849133,100690.0,100650.0,0.08955669]
[1762288263239,0.34,100660.0,100650.0,0.1380618]
[1762288263396,0.97610041,100660.0,100650.0,0.04850511]
[1762288263597,1.06993041,100660.0,100650.0,0.04850511]
[1762288263828,1.06993041,100660.0,100650.0,0.00014511]
[1762288264046,1.06993041,100660.0,100610.0,0.08955669]
[1762288264047,1.27855349,100660.0,100610.0,0.08955669]
[1762288264245,1.27855349,100660.0,100610.0,0.08970178]
[1762288264246,1.02569041,100640.0,100610.0,0.08970178]
[1762288264451,0.63610041,100620.0,100610.0,0.08970178]
[1762288264653,0.97610041,100620.0,100610.0,0.08970178]
[1762288264850,1.06993041,100620.0,100610.0,0.08970178]
[1762288265463,1.06993041,100620.0,100610.0,0.00014509]
[1762288266175,1.08081707,100620.0,100610.0,0.00014509]
[1762288266715,0.44471666,100620.0,100610.0,0.00414509]
[1762288266829,1.08081707,100620.0,100610.0,0.00414509]
[1762288267040,1.27958471,100620.0,100610.0,0.00414509]
[1762288267252,0.6434843,100620.0,100610.0,0.00414509]
[1762288267519,0.54873505,100610.0,100570.0,0.04832]
[1762288267781,0.63610041,100580.0,100570.0,0.04832]
[1762288268184,0.72993041,100580.0,100570.0,0.05233092]
[1762288268484,0.43383,100580.0,100570.0,0.00401092]
[1762288268691,1.06993041,100580.0,100570.0,0.00401092]
[1762288268895,0.43383,100580.0,100570.0,0.00401092]
[1762288269103,0.34,100580.0,100570.0,0.00401092]
[1762288269506,0.43383,100580.0,100570.0,0.00401092]
[1762288269710,1.06993041,100580.0,100570.0,0.00401092]
[1762288270117,1.26877709,100580.0,100570.0,0.00401092]
[1762288270327,0.34,100560.0,100550.0,0.01044]
[1762288270538,1.61220082,100560.0,100550.0,0.01044]
[1762288270769,1.61220082,100560.0,100510.0,0.12301752]
[1762288270770,1.71095082,100560.0,100510.0,0.12301752]
[1762288270993,0.68251041,100530.0,100520.0,0.22296436]
[1762288271217,0.04641,100530.0,100510.0,0.26711253]
[1762288271431,0.04641,100530.0,100510.0,0.24359653]
[1762288271663,0.04641,100530.0,100520.0,0.024]
[1762288271664,0.78126041,100530.0,100520.0,0.024]
[1762288271883,0.48516,100530.0,100510.0,0.19946712]
[1762288272107,0.73485041,100520.0,100510.0,0.000484]
[1762288272344,0.73485041,100520.0,100510.0,0.19946917]
[1762288272545,1.12126041,100530.0,100510.0,0.19946917]
[1762288272759,1.12126041,100530.0,100520.0,0.19896538]
[1762288272994,1.12126041,100530.0,100510.0,0.19946917]
[1762288273218,1.02251041,100530.0,100510.0,0.000484]
[1762288273478,0.73485041,100520.0,100510.0,0.000484]
[1762288273896,0.63610041,100520.0,100510.0,0.00131418]
[1762288274099,0.63610041,100520.0,100510.0,0.19946917]
[1762288274332,0.38641,100530.0,100510.0,0.024484]
[1762288274540,0.63610041,100520.0,100510.0,0.22346914]
[1762288274763,1.02251041,100530.0,100520.0,0.19896538]
[1762288274972,0.38641,100530.0,100520.0,0.024]
[1762288275226,1.12126041,100530.0,100520.0,0.024]
[1762288275432,1.12126041,100530.0,100510.0,0.004484]
[1762288275637,0.63610041,100520.0,100510.0,0.20346789]
[1762288275843,0.38641,100530.0,100510.0,0.20346612]
[1762288276040,1.02251041,100530.0,100510.0,0.20346612]
[1762288276177,0.38641,100530.0,100510.0,0.20346612]
[1762288276516,0.97610041,100530.0,100520.0,0.19896538]
[1762288276746,0.34,100530.0,100520.0,0.19896538]
[1762288276925,0.34,100530.0,100520.0,0.002]
[1762288276926,1.07485041,100530.0,100520.0,0.002]
[1762288277126,0.43875,100530.0,100510.0,0.000484]
[1762288277327,0.78126041,100520.0,100510.0,0.000484]
[1762288277479,0.04641,100520.0,100510.0,0.20046917]
[1762288277701,0.68251041,100520.0,100510.0,0.22346917]
[1762288278069,0.68251041,100520.0,100510.0,0.000484]
[1762288278274,0.78126041,100520.0,100510.0,0.000484]
[1762288278712,0.78126041,100520.0,100510.0,0.024484]
[1762288278892,1.12126041,100520.0,100510.0,0.000484]
[1762288279841,0.48516,100520.0,100510.0,0.002484]
[1762288280058,1.02251041,100520.0,100510.0,0.002484]
[1762288280178,1.02251041,100520.0,100510.0,0.026484]
[1762288280380,1.18505041,100520.0,100510.0,0.002484]
[1762288280914,0.4502,100520.0,100510.0,0.026484]
[1762288281169,0.34,100520.0,100510.0,0.23190851]
[1762288281344,0.97610041,100520.0,100510.0,0.00400448]
[1762288281544,1.13864041,100520.0,100510.0,0.00400448]
[1762288281777,0.51311736,100520.0,100510.0,0.00400448]
[1762288281912,1.14921777,100520.0,100510.0,0.00400448]
[1762288282898,1.78531818,100520.0,100510.0,0.00400448]
[1762288283763,1.98428356,100520.0,100510.0,0.00400448]
[1762288284169,0.53898517,100510.0,100500.0,4e-05]
[1762288284395,0.53900497,100500.0,100490.0,0.0004]
[1762288284599,0.53900497,100500.0,100490.0,0.00054526]
[1762288284600,1.8108131,100500.0,100490.0,0.00054526]
[1762288285050,2.00981807,100500.0,100490.0,0.00054526]
[1762288285258,1.27220082,100490.0,100480.0,0.0004]
[1762288285454,1.99256787,100490.0,100480.0,0.00054528]
[1762288285664,0.54899787,100480.0,100450.0,0.00056]
[1762288285870,0.54899787,100480.0,100450.0,0.00104487]
[1762288285871,1.02251041,100460.0,100450.0,0.00104487]
[1762288286279,1.12126041,100460.0,100450.0,0.00104487]
[1762288286478,0.38641,100460.0,100450.0,0.00104487]
[1762288286722,1.02251041,100460.0,100450.0,0.2241489]
[1762288286986,1.12126041,100460.0,100450.0,0.00104487]
[1762288287501,1.12326041,100460.0,100450.0,0.00104487]
[1762288288031,2.05841731,100460.0,100450.0,0.00104487]
[1762288288243,2.05841731,100460.0,100440.0,0.0004]
[1762288288505,1.85636398,100450.0,100430.0,0.0004]
[1762288288724,0.06331,100440.0,100430.0,0.0004]
[1762288288935,1.43426082,100440.0,100430.0,0.0004]
[1762288289084,0.16206,100440.0,100430.0,0.0244]
[1762288289287,1.43426082,100440.0,100430.0,0.0004]
[1762288289668,1.77426082,100440.0,100430.0,0.0004]
[1762288290091,1.77826082,100440.0,100430.0,0.0004]
[1762288290455,1.77426082,100440.0,100430.0,0.0004]
[1762288290675,1.77826082,100440.0,100430.0,0.0004]
[1762288290885,0.50606,100440.0,100430.0,0.19954368]
[1762288291110,0.50606,100440.0,100430.0,0.22354368]
[1762288291367,1.14216041,100440.0,100430.0,0.0004]
[1762288291536,1.77826082,100440.0,100430.0,0.0004]
[1762288292079,1.77426082,100440.0,100430.0,0.0004]
[1762288292278,0.50206,100440.0,100430.0,0.0244]
[1762288292481,0.50306,100440.0,100430.0,0.19954368]
[1762288292712,0.341,100440.0,100430.0,0.22354368]
[1762288292886,0.97710041,100440.0,100430.0,0.0004]
[1762288293243,0.97710041,100440.0,100430.0,0.19954368]
[1762288293244,0.34,100440.0,100430.0,0.19954368]
[1762288293445,1.13604041,100440.0,100430.0,0.0004]
[1762288293623,1.77214082,100440.0,100430.0,0.0004]
[1762288294560,0.343,100440.0,100430.0,0.0004]
[1762288294762,0.97910041,100440.0,100430.0,0.0004]
[1762288294967,0.343,100440.0,100430.0,0.19954368]
[1762288295176,0.343,100440.0,100430.0,0.22354368]
[1762288295373,0.003,100440.0,100430.0,0.25157303]
[1762288295575,0.97610041,100450.0,100430.0,0.25157303]
[1762288295781,1.06943041,100450.0,100440.0,0.024]
[1762288295987,1.06943041,100450.0,100440.0,0.00177551]
[1762288296189,1.04271041,100450.0,100440.0,0.00177551]
[1762288296362,1.04271041,100450.0,100440.0,0.02577551]
[1762288296558,1.77214082,100450.0,100430.0,0.0004]
[1762288296780,0.14932,100440.0,100430.0,0.0004]
[1762288297084,0.78542041,100440.0,100430.0,0.0004]
[1762288297714,1.76119514,100440.0,100430.0,0.0004]
[1762288298974,1.76219514,100440.0,100430.0,0.0244]
[1762288299177,1.76219514,100440.0,100430.0,0.0004]
[1762288299811,0.48899432,100440.0,100430.0,0.0004]
[1762288300015,1.12509473,100440.0,100430.0,0.0004]
[1762288300222,1.12809473,100440.0,100430.0,0.0004]
[1762288300432,1.76119514,100440.0,100430.0,0.0004]
[1762288300847,0.48999432,100440.0,100430.0,0.0004]
[1762288301055,0.48999432,100440.0,100420.0,0.0483]
[1762288301056,1.02203041,100430.0,100420.0,0.0483]
[1762288301265,1.11821041,100430.0,100420.0,0.0723]
[1762288301464,1.17850041,100430.0,100420.0,0.0483]
[1762288301801,1.17850041,100430.0,100420.0,0.0723]
[1762288302214,1.17850041,100430.0,100420.0,0.0483]
[1762288302966,1.17850041,100430.0,100420.0,0.0493]
[1762288303173,1.17850041,100430.0,100420.0,0.0483]
[1762288303456,1.17950041,100430.0,100420.0,0.0483]
[1762288304659,1.81560082,100430.0,100420.0,0.0483]
[1762288304860,1.81560082,100430.0,100400.0,5.9487]
[1762288304861,2.02470168,100430.0,100400.0,5.9487]
[1762288305137,1.62395082,100410.0,100400.0,5.9487]
[1762288305298,0.98785041,100410.0,100400.0,5.9727]
[1762288305948,0.97610041,100410.0,100400.0,5.9487]
[1762288306155,0.97610041,100410.0,100400.0,5.9727]
[1762288306328,0.97610041,100410.0,100400.0,5.97284531]
[1762288306706,0.97610041,100410.0,100400.0,6.17404849]
[1762288306962,0.97610041,100410.0,100400.0,6.15004849]
[1762288307192,0.97610041,100410.0,100400.0,5.95084531]
[1762288307396,0.97610041,100410.0,100400.0,6.15004849]
[1762288307532,0.97610041,100410.0,100400.0,6.23702849]
[1762288307733,0.63610041,100410.0,100400.0,6.23702849]
[1762288307931,0.63610041,100410.0,100400.0,5.95084531]
[1762288308135,1.13257041,100410.0,100400.0,5.95084531]
[1762288308556,0.97610041,100410.0,100400.0,5.95084531]
[1762288308759,0.97610041,100410.0,100400.0,5.97484531]
[1762288309006,0.97610041,100410.0,100400.0,6.17204849]
[1762288309294,0.34,100410.0,100400.0,6.17304849]
[1762288309587,0.97610041,100410.0,100400.0,6.17304849]
[1762288310370,0.97610041,100410.0,100400.0,5.97384531]
[1762288310576,0.97610041,100410.0,100400.0,6.17304849]
[1762288310894,0.97610041,100410.0,100400.0,5.97384531]
[1762288311110,0.97610041,100410.0,100400.0,6.14904849]
[1762288311398,0.63610041,100420.0,100410.0,0.19916808]
[1762288311626,0.63610041,100420.0,100410.0,0.22316808]
[1762288311779,0.97610041,100420.0,100410.0,0.22316808]
[1762288312353,1.20514124,100420.0,100410.0,0.22316808]
[1762288312558,1.20514124,100420.0,100400.0,5.94884531]
[1762288312751,0.86514124,100410.0,100400.0,5.97284531]
[1762288313205,0.86514124,100410.0,100400.0,5.94884531]
[1762288313206,1.20514124,100410.0,100400.0,5.94884531]
[1762288313447,1.20514124,100410.0,100400.0,5.94986069]
[1762288314188,1.56079458,100410.0,100400.0,5.94986069]
[1762288314390,1.61351445,100410.0,100400.0,5.94986069]
[1762288314620,0.53265228,100410.0,100400.0,5.94986069]
[1762288314827,1.36161124,100410.0,100400.0,5.94986069]
[1762288315343,1.36161124,100410.0,100400.0,5.95086069]
[1762288315748,1.20514124,100410.0,100400.0,5.94986069]
[1762288315950,1.21014124,100410.0,100400.0,6.01284069]
[1762288316377,1.21014124,100410.0,100400.0,5.94986069]
[1762288316378,1.20514124,100410.0,100400.0,5.94986069]
[1762288316791,1.21014124,100410.0,100400.0,5.94986069]
[1762288317542,1.56579458,100410.0,100400.0,5.94986069]
[1762288317879,1.36661124,100410.0,100400.0,5.94986069]
[1762288318063,0.50147,100410.0,100400.0,5.94986069]
[1762288318265,1.56579458,100410.0,100400.0,5.94986069]
[1762288318485,1.36661124,100410.0,100400.0,5.94986069]
[1762288318690,1.56579458,100410.0,100400.0,5.94986069]
[1762288319567,1.27043124,100410.0,100400.0,5.94986069]
[1762288319784,1.36661124,100410.0,100400.0,5.94986069]
[1762288320296,1.21014124,100410.0,100400.0,5.94986069]
[1762288320791,0.87014124,100410.0,100400.0,5.94986069]
[1762288320996,1.02661124,100410.0,100400.0,5.94986069]
[1762288321120,1.56579458,100410.0,100400.0,5.94986069]
[1762288321521,1.60197686,100410.0,100400.0,4.37942368]
[1762288321765,5.53972906,100410.0,100400.0,3.72791803]
[1762288322149,5.53972906,100410.0,100400.0,2.97791803]
[1762288322357,5.49102518,100410.0,100400.0,2.97791803]
[1762288322554,4.59697686,100410.0,100400.0,2.97791803]
[1762288322758,5.49211808,100410.0,100400.0,2.97791803]
[1762288323170,4.60697686,100410.0,100400.0,2.97791803]
[1762288323423,1.61697685,100410.0,100400.0,2.97791803]
[1762288323592,1.60697686,100410.0,100400.0,2.97791803]
[1762288323747,1.03161124,100410.0,100400.0,2.97791803]
[1762288324110,0.87514124,100410.0,100400.0,2.97791803]
[1762288324396,0.87514124,100410.0,100400.0,3.04089803]
[1762288324597,0.86514124,100410.0,100400.0,3.04089803]
[1762288324745,0.09618,100440.0,100400.0,2.97791803]
[1762288324746,0.86514124,100420.0,100400.0,2.97791803]
[1762288324950,0.86614124,100410.0,100400.0,2.97690265]
[1762288325144,0.86614124,100410.0,100400.0,3.00090265]
[1762288325145,0.86514124,100410.0,100400.0,3.00090265]
[1762288325349,0.20908109,100440.0,100400.0,2.97690265]
[1762288325577,0.86514124,100420.0,100410.0,0.08955669]
[1762288325936,0.86514124,100420.0,100400.0,2.97690265]
[1762288326112,1.30160771,100410.0,100400.0,2.97690265]
[1762288326338,1.30160771,100410.0,100400.0,2.98090265]
[1762288326339,0.43618,100410.0,100400.0,2.98090265]
[1762288326458,1.30132124,100410.0,100400.0,2.97690265]
[1762288326860,1.50050458,100410.0,100400.0,2.97690265]
[1762288327064,1.30132124,100410.0,100400.0,2.97690265]
[1762288327496,0.96132124,100410.0,100400.0,2.97690265]
[1762288327694,0.43618,100410.0,100400.0,2.97690265]
[1762288327936,1.20514124,100410.0,100400.0,3.17610583]
[1762288328100,0.91107124,100430.0,100400.0,3.02486265]
[1762288328309,0.86514124,100410.0,100400.0,3.02486265]
[1762288328510,1.20714124,100410.0,100400.0,3.02486265]
[1762288328717,0.34,100410.0,100400.0,3.04886265]
[1762288328918,1.20514124,100410.0,100400.0,3.02486265]
[1762288329089,0.34,100410.0,100400.0,3.22806583]
[1762288329310,0.86514124,100420.0,100410.0,0.23536515]
[1762288329546,0.91107124,100430.0,100420.0,0.19916351]
[1762288329757,0.04593,100430.0,100420.0,0.04796]
[1762288329956,1.34725124,100430.0,100420.0,0.04796]
[1762288330159,1.34247124,100430.0,100420.0,0.04796]
[1762288330360,1.34247124,100430.0,100420.0,0.07196]
[1762288330772,1.25107124,100430.0,100420.0,0.04796]
[1762288331014,1.34247124,100430.0,100420.0,0.04846757]
[1762288331323,1.20514124,100430.0,100420.0,0.27163108]
[1762288331457,0.86514124,100440.0,100430.0,0.25932596]
[1762288331663,0.13781,100460.0,100440.0,0.1991238]
[1762288331863,1.00295124,100460.0,100450.0,0.08955669]
[1762288332407,0.91155124,100460.0,100450.0,0.08955669]
[1762288332651,0.04641,100460.0,100450.0,0.08955669]
[1762288332837,0.91203363,100460.0,100440.0,0.04814839]
[1762288332981,1.20514124,100450.0,100440.0,0.04814839]
[1762288333192,1.29654124,100450.0,100440.0,0.04814839]
[1762288333596,0.4314,100450.0,100440.0,0.04814839]
[1762288333816,1.29654124,100450.0,100440.0,0.04814839]
[1762288334023,1.20514124,100450.0,100440.0,0.04814839]
[1762288334432,0.91203363,100460.0,100440.0,0.27127224]
[1762288334582,0.91203363,100460.0,100450.0,0.08955669]
[1762288334783,0.91203363,100460.0,100450.0,0.11355669]
[1762288334985,0.13829239,100460.0,100440.0,0.04814839]
[1762288335185,0.4314,100450.0,100440.0,0.04814839]
[1762288335461,2.37074379,100450.0,100400.0,2.97675734]
[1762288335668,0.34,100410.0,100400.0,2.97675734]
[1762288335876,1.20514124,100410.0,100400.0,2.97675734]
[1762288336099,1.29654124,100410.0,100400.0,2.97675734]
[1762288336294,0.34,100410.0,100400.0,3.00075734]
[1762288336496,0.34,100410.0,100400.0,2.97675734]
[1762288336702,0.34,100410.0,100400.0,3.29704052]
[1762288336931,0.34,100410.0,100400.0,3.30936811]
[1762288337081,0.33940768,100410.0,100400.0,3.4229248]
[1762288337296,0.33911417,100410.0,100400.0,3.4229248]
[1762288337500,0.70218604,100440.0,100430.0,0.024]
[1762288337708,0.04641,100460.0,100430.0,0.08955669]
[1762288338029,0.95654124,100440.0,100420.0,0.13743669]
[1762288338201,0.86514124,100430.0,100420.0,0.13743669]
[1762288338386,0.0914,100440.0,100420.0,0.36059663]
[1762288338571,0.92212161,100460.0,100430.0,0.30618086]
[1762288338770,0.14838037,100460.0,100440.0,0.08955669]
[1762288339177,1.01352161,100460.0,100440.0,0.08955669]
[1762288339376,0.95654124,100450.0,100440.0,0.08955669]
[1762288339575,0.95654124,100450.0,100420.0,0.40673585]
[1762288339810,0.34,100430.0,100420.0,0.46832128]
[1762288339991,0.34,100430.0,100420.0,0.54140128]
[1762288340361,0.00048239,100450.0,100440.0,0.19912385]
[1762288340491,0.86562363,100450.0,100440.0,0.08955669]
[1762288340706,1.29702363,100450.0,100420.0,0.20002212]
[1762288340914,1.20514124,100430.0,100420.0,0.22402212]
[1762288341125,1.25018124,100430.0,100400.0,3.06631403]
[1762288341324,1.20514124,100410.0,100400.0,3.06631403]
[1762288341521,1.20514124,100410.0,100400.0,3.06710092]
[1762288342111,1.29654124,100410.0,100400.0,3.06710092]
[1762288342312,1.29654124,100410.0,100400.0,3.16665789]
[1762288342554,1.29654124,100410.0,100400.0,3.07724651]
[1762288342728,1.49572458,100410.0,100400.0,3.07724651]
[1762288342912,1.49572458,100410.0,100400.0,2.97768954]
[1762288343589,1.15572458,100410.0,100400.0,2.97768954]
[1762288343753,0.95654124,100410.0,100400.0,2.98068954]
[1762288343958,0.95654124,100410.0,100400.0,2.97768954]
[1762288344413,1.15972458,100410.0,100400.0,2.97768954]
[1762288345397,0.96054124,100410.0,100400.0,3.07724651]
[1762288345599,1.40832458,100410.0,100400.0,3.07724651]
[1762288345799,1.20914124,100410.0,100400.0,3.07724651]
[1762288346000,1.40832458,100410.0,100400.0,3.07724651]
[1762288346208,1.20914124,100410.0,100400.0,3.07724651]
[1762288346833,1.20914124,100410.0,100400.0,3.17432651]
[1762288347166,1.20514124,100410.0,100400.0,3.07724651]
[1762288347654,1.20714124,100410.0,100400.0,3.07724651]
[1762288347779,0.34,100410.0,100400.0,3.07724651]
[1762288347982,1.20514124,100410.0,100400.0,3.07724651]
[1762288348188,1.20514124,100410.0,100400.0,3.17432651]
[1762288348597,1.20514124,100410.0,100400.0,3.07724651]
[1762288348809,0.86514124,100410.0,100400.0,3.17432651]
[1762288349050,0.86514124,100410.0,100400.0,3.07724651]
[1762288349588,1.20514124,100410.0,100400.0,3.17432651]
[1762288350014,1.20514124,100410.0,100400.0,3.17436651]
[1762288350297,0.86514124,100410.0,100400.0,3.17436651]
[1762288350729,0.34,100420.0,100400.0,3.17436651]
[1762288350730,1.20514124,100420.0,100400.0,3.17436651]
[1762288350912,0.86514124,100420.0,100410.0,0.18663669]
[1762288351169,0.86514124,100420.0,100410.0,0.28619366]
[1762288351367,0.29861653,100450.0,100410.0,0.28619366]
[1762288351513,0.86514124,100420.0,100410.0,0.18911366]
[1762288352080,0.86514124,100420.0,100410.0,0.28514366]
[1762288352278,0.86514124,100430.0,100410.0,0.49428616]
[1762288352474,0.86514124,100440.0,100420.0,0.35295168]
[1762288352608,0.86514124,100440.0,100430.0,0.08955669]
[1762288352814,0.86514124,100440.0,100430.0,0.20958669]
[1762288353055,0.20901837,100470.0,100430.0,0.18558669]
[1762288353255,0.29857506,100470.0,100430.0,0.11355669]
[1762288353463,0.34,100460.0,100430.0,0.08955669]
[1762288353664,1.20514124,100440.0,100430.0,0.13171659]
[1762288353917,0.86514124,100450.0,100440.0,0.02488]
[1762288354126,1.73028248,100450.0,100430.0,0.075]
[1762288354326,0.86542771,100440.0,100430.0,0.049]
[1762288354538,1.20514124,100440.0,100430.0,0.14503]
[1762288354740,1.20514124,100440.0,100430.0,0.164313]
[1762288354973,0.53912385,100440.0,100430.0,0.068283]
[1762288355201,0.53912385,100440.0,100430.0,0.165313]
[1762288355202,0.34048209,100440.0,100430.0,0.165313]
[1762288355374,1.20562333,100440.0,100430.0,0.20149528]
[1762288355575,1.20562333,100440.0,100430.0,0.165313]
[1762288356004,1.20562333,100440.0,100430.0,0.001]
[1762288356427,1.40474718,100440.0,100420.0,0.0968]
[1762288356632,0.86514124,100430.0,100420.0,0.19283]
[1762288357074,0.86514124,100430.0,100420.0,0.0968]
[1762288357443,0.86514124,100430.0,100420.0,0.09707916]
[1762288357646,1.20514124,100430.0,100420.0,0.13530144]
[1762288358333,1.49917492,100430.0,100420.0,0.00027916]
[1762288359223,0.63403368,100430.0,100420.0,0.00027916]
[1762288359389,1.49917492,100430.0,100420.0,0.00027916]
[1762288359992,1.40428492,100430.0,100420.0,0.00127916]
[1762288360194,1.49917492,100430.0,100420.0,0.00127916]
[1762288360403,1.49917492,100430.0,100420.0,0.00027916]
[1762288360603,1.50017492,100430.0,100420.0,0.00027916]
[1762288360892,1.40528492,100430.0,100420.0,0.00027916]
[1762288361273,1.20614124,100430.0,100420.0,0.00027916]
[1762288361474,1.40528492,100430.0,100420.0,0.00027916]
[1762288361769,1.20614124,100430.0,100420.0,0.00027916]
[1762288362030,4.50017492,100430.0,100420.0,0.00027916]
[1762288362228,4.54635719,100430.0,100420.0,0.00027916]
[1762288362599,4.5363572,100430.0,100420.0,0.00027916]
[1762288363217,4.49917492,100430.0,100420.0,0.00027916]
[1762288363607,1.50417492,100430.0,100420.0,0.00027916]
[1762288363809,1.49917492,100430.0,100420.0,0.00027916]
[1762288364066,1.50617492,100430.0,100420.0,0.00027916]
[1762288364271,1.41128492,100430.0,100420.0,0.00027916]
[1762288364479,1.41128492,100430.0,100420.0,0.04927916]
[1762288364480,1.21214124,100430.0,100420.0,0.04927916]
[1762288364712,1.21214124,100430.0,100420.0,0.06349508]
[1762288364876,0.87214124,100430.0,100420.0,0.20876508]
[1762288365115,0.87214124,100430.0,100420.0,0.06349508]
[1762288365248,1.07128492,100430.0,100420.0,0.00027916]
[1762288365603,1.41128492,100430.0,100420.0,0.04927916]
[1762288365815,1.41128492,100430.0,100420.0,0.00027916]
[1762288366029,1.50618492,100430.0,100420.0,0.00027916]
[1762288366262,1.49918492,100430.0,100420.0,0.00027916]
[1762288366861,0.53914368,100430.0,100420.0,0.00027916]
[1762288367097,4.50117492,100430.0,100420.0,0.00027916]
[1762288367321,3.77177264,100430.0,100420.0,0.00027916]
[1762288367505,4.63691388,100430.0,100420.0,0.00027916]
[1762288368147,1.59073161,100430.0,100420.0,0.00027916]
[1762288369757,4.59073161,100430.0,100420.0,0.00027916]
[1762288369958,4.63691388,100430.0,100420.0,0.00027916]
[1762288370199,4.5373672,100430.0,100420.0,0.00027916]
[1762288370411,0.86714124,100430.0,100420.0,0.00027916]
[1762288370614,0.00048209,100440.0,100420.0,0.19364916]
[1762288370817,0.86514124,100430.0,100420.0,0.22169059]
[1762288371008,0.86514124,100430.0,100420.0,0.12881059]
[1762288371223,1.0742421,100430.0,100400.0,3.116996]
[1762288371505,0.86514124,100410.0,100400.0,3.116996]
[1762288371639,1.40432458,100410.0,100400.0,3.024536]
[1762288371840,1.20514124,100410.0,100400.0,2.976856]
[1762288372039,1.40432458,100410.0,100400.0,2.976856]
[1762288372306,0.34,100410.0,100400.0,3.07641297]
[1762288372505,0.53918334,100410.0,100400.0,3.13418297]
[1762288372801,0.53918334,100410.0,100400.0,3.22534297]
[1762288373026,0.97941223,100410.0,100400.0,3.22534297]
[1762288373353,0.34,100410.0,100400.0,3.22734297]
[1762288373621,0.97941223,100410.0,100400.0,3.22734297]
[1762288373852,1.17859557,100410.0,100400.0,3.22734297]
[1762288374040,0.97941223,100410.0,100400.0,3.22734297]
[1762288374557,1.9128978,100410.0,100400.0,2.978856]
[1762288374747,3.6902556,100410.0,100400.0,2.978856]
[1762288374987,4.95908007,100410.0,100400.0,2.978856]
[1762288375189,4.96908006,100410.0,100400.0,2.978856]
[1762288375398,4.97949144,100410.0,100400.0,2.978856]
[1762288375548,4.97949144,100410.0,100400.0,2.976856]
[1762288375951,5.0021884,100410.0,100400.0,2.74980142]
[1762288376129,4.97949144,100410.0,100400.0,2.74980142]
[1762288376333,4.98049144,100410.0,100400.0,2.74980142]
[1762288376605,4.98049144,100410.0,100400.0,2.75058835]
[1762288376918,4.96949145,100410.0,100400.0,2.75058835]
[1762288377056,4.98449144,100410.0,100400.0,2.75058835]
[1762288377654,5.0071884,100410.0,100400.0,1.41005789]
[1762288377850,4.98449144,100410.0,100400.0,1.41005789]
[1762288378061,3.70566698,100410.0,100400.0,0.35343433]
[1762288378299,5.03435232,100410.0,100400.0,0.06414838]
[1762288378503,4.97449145,100410.0,100400.0,0.02799256]
[1762288378708,4.98449144,100410.0,100400.0,0.02799256]
[1762288379136,4.96380628,100380.0,100370.0,8e-05]
[1762288379507,5.05995628,100380.0,100370.0,8e-05]
[1762288379727,0.57546486,100360.0,100350.0,0.005]
[1762288379943,1.85524932,100360.0,100350.0,0.005]
[1762288380168,1.95184932,100360.0,100350.0,0.005]
[1762288380361,1.95184932,100360.0,100350.0,0.00514531]
[1762288380362,5.00948931,100360.0,100350.0,0.00514531]
[1762288380886,1.99948932,100360.0,100350.0,0.00514531]
[1762288381402,4.99948932,100360.0,100350.0,0.00514531]
[1762288381671,5.00948931,100360.0,100350.0,0.00514531]